bitfinex/quotes_BTCUSD_20250225
["timestamp","ask_amount","ask_price","bid_price","bid_amount"]
[1740521714365,0.001,89178.0,89172.0,0.08957012]
[1740521714602,0.001,89178.0,89173.0,0.01064]
[1740521714792,0.16821,89174.0,89173.0,0.01064]
[1740521714997,0.001,89178.0,89162.0,0.0786]
[1740521715199,0.168216,89171.0,89167.0,0.01064]
[1740521715403,0.001,89178.0,89167.0,0.01064]
[1740521715610,0.301,89178.0,89167.0,0.01064]
[1740521715832,0.02088896,89171.0,89169.0,0.005]
[1740521716039,0.02088896,89171.0,89170.0,0.36083885]
[1740521716442,0.02088896,89171.0,89170.0,0.36783885]
[1740521716797,0.3,89184.0,89170.0,0.19262085]
[1740521717000,0.001,89178.0,89177.0,0.168204]
[1740521717406,0.3,89184.0,89172.0,0.01454085]
[1740521717635,0.3,89184.0,89178.0,0.168202]
[1740521717780,0.3,89191.0,89173.0,0.224283]
[1740521717985,0.3,89191.0,89179.0,0.1682]
[1740521718188,0.00097561,89197.0,89180.0,0.00156966]
[1740521718390,0.00097561,89197.0,89195.0,0.16817]
[1740521719197,0.00097561,89197.0,89195.0,0.1697394]
[1740521719602,0.00097561,89197.0,89195.0,0.18428025]
[1740521719965,0.00097561,89197.0,89195.0,0.29802754]
[1740521720160,0.00097561,89197.0,89195.0,0.29645838]
[1740521720792,0.0018476,89196.0,89195.0,0.30745838]
[1740521722536,0.0018476,89196.0,89195.0,0.30345838]
[1740521722741,0.0008476,89196.0,89195.0,0.30345838]
[1740521723372,0.0008476,89196.0,89195.0,0.31045838]
[1740521723578,0.0008487,89221.0,89210.0,0.1]
[1740521723786,7e-07,89221.0,89220.0,0.4859815]
[1740521723994,7e-07,89221.0,89220.0,0.5859815]
[1740521724610,7e-07,89221.0,89220.0,0.6729215]
[1740521725146,0.0008494,89262.0,89220.0,0.6729215]
[1740521725147,0.0008494,89262.0,89229.0,0.1]
[1740521725354,0.0012681,89262.0,89261.0,0.168046]
[1740521725555,0.0012681,89262.0,89261.0,0.178686]
[1740521725804,0.0012681,89262.0,89261.0,0.18025429]
[1740521726008,0.0012681,89262.0,89261.0,0.01064]
[1740521726220,0.0012681,89262.0,89261.0,0.178686]
[1740521726849,0.0012681,89262.0,89261.0,0.03018085]
[1740521727000,0.0012681,89262.0,89261.0,0.20279495]
[1740521727615,0.0012681,89262.0,89261.0,0.19979495]
[1740521727825,0.0012681,89262.0,89261.0,0.20679495]
[1740521728029,0.0012681,89262.0,89261.0,0.20522685]
[1740521728485,0.0012681,89262.0,89261.0,0.20022685]
[1740521728727,0.0012681,89262.0,89261.0,0.20722685]
[1740521728928,0.0012681,89262.0,89261.0,0.32254247]
[1740521729181,0.0012681,89262.0,89261.0,0.32097438]
[1740521730223,0.0012681,89262.0,89261.0,0.31397438]
[1740521730456,0.0012681,89262.0,89261.0,0.32097438]
[1740521731135,0.0012681,89262.0,89261.0,0.31397438]
[1740521731552,0.0012681,89262.0,89261.0,0.30697438]
[1740521731759,0.0012681,89262.0,89261.0,0.31397438]
[1740521732021,0.0012681,89262.0,89261.0,1.17567438]
[1740521732381,0.0012681,89262.0,89261.0,1.18967438]
[1740521732576,0.0012681,89262.0,89261.0,1.18267438]
[1740521732784,0.0012681,89262.0,89261.0,1.17567438]
[1740521732983,0.0012681,89262.0,89261.0,1.18267438]
[1740521733189,0.0012681,89262.0,89261.0,1.18967438]
[1740521735188,0.0008491,89287.0,89261.0,1.18967438]
[1740521735189,0.18421728,89290.0,89277.0,0.168015]
[1740521735395,0.0001256,89286.0,89278.0,0.3251]
[1740521735617,0.168012,89279.0,89278.0,0.3357]
[1740521736440,0.168012,89279.0,89278.0,0.3251]
[1740521736653,0.0001256,89286.0,89278.0,0.3357]
[1740521736852,0.0001256,89286.0,89278.0,0.3427]
[1740521737063,0.168001,89285.0,89278.0,0.3357]
[1740521737304,0.0001256,89286.0,89278.0,0.3357]
[1740521738479,0.0001256,89286.0,89278.0,0.3497]
[1740521738718,0.0001256,89286.0,89278.0,0.3427]
[1740521739070,0.0001256,89286.0,89283.0,0.168004]
[1740521739252,0.0001256,89286.0,89284.0,0.3251]
[1740521739457,0.0001256,89286.0,89285.0,0.29628938]
[1740521739658,0.0001256,89286.0,89285.0,1.24761369]
[1740521741990,0.0001256,89286.0,89285.0,1.25461369]
[1740521742197,0.0001256,89286.0,89285.0,1.26161369]
[1740521743033,0.0001256,89286.0,89285.0,1.27221369]
[1740521745349,0.167962,89306.0,89292.0,0.167986]
[1740521745473,0.01644532,89313.0,89285.0,1.00004753]
[1740521745684,0.223947,89307.0,89288.0,0.223994]
[1740521745883,0.3,89311.0,89289.0,0.35227938]
[1740521746111,0.30012543,89313.0,89292.0,0.18252785]
[1740521746314,0.30012543,89313.0,89292.0,0.01454085]
[1740521746483,0.167964,89305.0,89293.0,0.01454085]
[1740521746686,0.31700935,89313.0,89293.0,0.01454085]
[1740521746892,0.223944,89308.0,89290.0,0.223988]
[1740521747096,0.167961,89307.0,89293.0,0.01454085]
[1740521747299,0.167963,89305.0,89293.0,0.01454085]
[1740521747493,0.01700935,89313.0,89293.0,0.01454085]
[1740521747494,0.167966,89304.0,89293.0,0.01454085]
[1740521747703,0.31700935,89313.0,89293.0,0.01454085]
[1740521747913,0.31700935,89313.0,89292.0,0.01454085]
[1740521748293,0.3,89309.0,89288.0,0.005]
[1740521748483,0.3,89305.0,89293.0,0.0166]
[1740521748669,0.167984,89294.0,89293.0,0.0166]
[1740521748880,0.167984,89294.0,89293.0,0.0106]
[1740521749409,0.167983,89295.0,89293.0,0.0106]
[1740521749842,0.167984,89294.0,89293.0,0.0106]
[1740521750050,0.223954,89304.0,89293.0,0.0106]
[1740521750276,0.167984,89294.0,89293.0,0.0106]
[1740521750756,0.167979,89297.0,89293.0,0.0146]
[1740521751010,0.167979,89297.0,89293.0,0.0156]
[1740521751269,0.467977,89298.0,89293.0,0.0186]
[1740521751533,0.167976,89298.0,89293.0,0.0186]
[1740521751755,0.167978,89298.0,89293.0,0.0106]
[1740521751998,0.167978,89298.0,89293.0,0.0176]
[1740521752201,0.167979,89297.0,89293.0,0.0216]
[1740521752416,0.167976,89298.0,89293.0,0.0266]
[1740521752618,0.167976,89298.0,89293.0,0.0226]
[1740521752967,0.167977,89298.0,89293.0,0.0226]
[1740521753235,0.00842981,89306.0,89293.0,0.0226]
[1740521753434,0.167975,89299.0,89293.0,0.0226]
[1740521754207,0.167975,89299.0,89293.0,0.0106]
[1740521754656,0.167975,89299.0,89293.0,0.0156]
[1740521754856,0.223951,89305.0,89293.0,0.0106]
[1740521755179,0.167983,89295.0,89293.0,0.0186]
[1740521755355,0.167984,89294.0,89293.0,0.008]
[1740521755557,0.167997,89287.0,89286.0,0.3251]
[1740521755693,0.167997,89287.0,89286.0,0.0106]
[1740521757955,0.167997,89287.0,89286.0,0.0146]
[1740521758315,0.167997,89287.0,89286.0,0.0126]
[1740521758698,0.167997,89287.0,89286.0,0.006]
[1740521759047,0.0461,89307.0,89291.0,0.223986]
[1740521759249,0.167962,89306.0,89289.0,0.167992]
[1740521759403,0.0461,89307.0,89289.0,0.01454085]
[1740521759600,0.0461,89307.0,89289.0,0.23853085]
[1740521759995,0.0461,89307.0,89286.0,0.3311]
[1740521759996,0.0461,89307.0,89287.0,0.01454085]
[1740521760225,0.02543754,89313.0,89289.0,0.01454085]
[1740521760509,0.02543754,89313.0,89288.0,0.44041514]
[1740521760510,0.00855362,89313.0,89301.0,0.167971]
[1740521760719,0.00012543,89313.0,89299.0,0.01454085]
[1740521760900,0.00012543,89313.0,89301.0,0.01454085]
[1740521761104,0.167953,89311.0,89300.0,0.01454085]
[1740521761317,0.167953,89311.0,89302.0,0.01454085]
[1740521761506,0.00012543,89313.0,89303.0,0.03497421]
[1740521761721,0.00012543,89313.0,89304.0,0.03497421]
[1740521761722,0.167965,89305.0,89304.0,0.03497421]
[1740521761855,0.167965,89305.0,89304.0,0.0106]
[1740521762217,0.0485,89294.0,89292.0,0.0106]
[1740521762635,0.3,89292.0,89277.0,0.3251]
[1740521762852,0.467999,89286.0,89277.0,0.3251]
[1740521764236,0.0485,89294.0,89277.0,0.3251]
[1740521764449,0.0485,89294.0,89278.0,0.00156784]
[1740521764670,0.0485,89294.0,89286.0,0.3251]
[1740521764877,0.16798,89296.0,89287.0,0.03498644]
[1740521765087,0.167976,89298.0,89286.0,0.3251]
[1740521765311,0.167973,89300.0,89287.0,0.03498944]
[1740521765512,0.002,89294.0,89286.0,0.3251]
[1740521765923,0.3,89297.0,89287.0,0.03655597]
[1740521766125,0.0464,89311.0,89288.0,0.14873579]
[1740521766343,0.01536184,89313.0,89289.0,0.91279662]
[1740521766543,0.01536184,89313.0,89302.0,0.01454085]
[1740521766801,0.01536184,89313.0,89304.0,0.01454085]
[1740521767010,0.01536184,89313.0,89305.0,0.3251]
[1740521767429,0.223937,89311.0,89305.0,0.3251]
[1740521767605,0.167953,89311.0,89305.0,0.3251]
[1740521767809,0.01536184,89313.0,89305.0,0.3251]
[1740521768869,0.01536184,89313.0,89305.0,0.3261]
[1740521769079,0.223937,89311.0,89305.0,0.3261]
[1740521769289,0.467961,89306.0,89305.0,0.3261]
[1740521769492,0.467961,89306.0,89305.0,0.0116]
[1740521770608,0.467961,89306.0,89305.0,0.0146]
[1740521771010,0.467961,89306.0,89305.0,0.0106]
[1740521771224,0.467961,89306.0,89305.0,0.0146]
[1740521771656,0.467961,89306.0,89305.0,0.0166]
[1740521772903,0.467961,89306.0,89305.0,0.006]
[1740521773327,0.3,89306.0,89305.0,0.006]
[1740521773528,0.3,89306.0,89305.0,0.184563]
[1740521773683,0.3,89306.0,89305.0,0.182563]
[1740521774076,0.3,89306.0,89305.0,0.508663]
[1740521774495,0.3,89306.0,89305.0,0.3397]
[1740521774701,0.00097203,89313.0,89305.0,0.3397]
[1740521774932,0.00097203,89313.0,89305.0,0.3417]
[1740521775157,0.00097203,89313.0,89306.0,0.00156741]
[1740521775384,0.00097203,89313.0,89306.0,0.32666741]
[1740521775586,0.00097203,89313.0,89307.0,0.167958]
[1740521775791,0.00097203,89313.0,89308.0,0.3251]
[1740521777178,0.00097203,89313.0,89312.0,0.16795]
[1740521777379,0.00047203,89313.0,89312.0,0.16951729]
[1740521777676,0.00047203,89313.0,89312.0,0.00156729]
[1740521777910,0.00047203,89313.0,89312.0,0.50759085]
[1740521778425,0.00047203,89313.0,89312.0,0.33964085]
[1740521779363,0.00047203,89313.0,89312.0,0.50759085]
[1740521779566,0.00047203,89313.0,89312.0,0.33964085]
[1740521780148,0.00047203,89313.0,89312.0,0.34664085]
[1740521780359,0.00047203,89313.0,89312.0,0.3427]
[1740521780788,0.00047203,89313.0,89312.0,0.3497]
[1740521783321,0.00047203,89313.0,89312.0,0.3391]
[1740521783546,0.46842003,89313.0,89312.0,0.3391]
[1740521783800,0.51442003,89313.0,89312.0,0.014]
[1740521784532,0.51442003,89313.0,89312.0,0.007]
[1740521784790,0.467971,89301.0,89300.0,0.0106]
[1740521787279,0.469971,89301.0,89300.0,0.0106]
[1740521787921,0.467971,89301.0,89300.0,0.0106]
[1740521788129,0.468971,89301.0,89300.0,0.0106]
[1740521788467,0.301,89301.0,89300.0,0.0106]
[1740521789733,0.468971,89301.0,89300.0,0.0106]
[1740521789930,0.467971,89301.0,89300.0,0.0106]
[1740521790459,0.167971,89301.0,89300.0,0.0106]
[1740521790670,0.167971,89301.0,89300.0,0.003]
[1740521790870,0.167971,89301.0,89300.0,0.0106]
[1740521791069,0.167971,89301.0,89300.0,0.012]
[1740521791826,0.223947,89307.0,89293.0,0.0106]
[1740521792037,0.167984,89294.0,89293.0,0.0106]
[1740521794354,0.167984,89294.0,89293.0,0.0136]
[1740521794559,0.167984,89294.0,89293.0,0.0106]
[1740521795012,0.167984,89294.0,89293.0,0.0136]
[1740521795205,0.167984,89294.0,89293.0,0.0116]
[1740521795406,0.167984,89294.0,89293.0,0.0126]
[1740521796141,0.597984,89294.0,89293.0,0.002]
[1740521796280,0.61895859,89294.0,89293.0,0.001]
[1740521796684,0.167995,89288.0,89287.0,0.0016932]
[1740521797096,0.467995,89288.0,89287.0,0.0016932]
[1740521797497,0.48896959,89288.0,89287.0,0.0016932]
[1740521798229,0.50345082,89288.0,89287.0,0.0016932]
[1740521798833,0.51205699,89288.0,89287.0,0.0016932]
[1740521799463,0.50905699,89288.0,89287.0,0.0016932]
[1740521799670,0.51805699,89288.0,89287.0,0.0026932]
[1740521800074,0.51105699,89288.0,89287.0,0.0016932]
[1740521800298,0.51505699,89288.0,89287.0,0.0016932]
[1740521800509,0.168078,89244.0,89243.0,0.3251]
[1740521800949,0.3,89249.0,89243.0,0.00753847]
[1740521801147,0.168078,89244.0,89243.0,0.00753847]
[1740521801354,0.3,89254.0,89239.0,0.0106]
[1740521801523,0.3,89262.0,89239.0,0.0106]
[1740521801826,0.168086,89240.0,89239.0,0.0110187]
[1740521802003,0.468086,89240.0,89239.0,0.0004187]
[1740521802914,0.48906059,89240.0,89239.0,0.0004187]
[1740521804243,0.48906059,89240.0,89239.0,0.0044187]
[1740521804425,0.48906059,89240.0,89239.0,0.0004187]
[1740521804668,0.49006059,89240.0,89239.0,0.0014187]
[1740521805084,0.49006059,89240.0,89239.0,0.0004187]
[1740521805261,0.49106059,89240.0,89239.0,0.0014187]
[1740521805496,0.49006059,89240.0,89239.0,0.0004187]
[1740521806553,0.32197459,89240.0,89239.0,0.0004187]
[1740521806759,0.32197459,89240.0,89239.0,0.0044187]
[1740521807167,0.32097459,89240.0,89239.0,0.0004187]
[1740521807913,0.32097459,89240.0,89239.0,0.1685057]
[1740521808112,0.001,89240.0,89239.0,0.4936057]
[1740521808334,0.001,89240.0,89239.0,1.25508721]
[1740521808517,0.002,89240.0,89239.0,1.34471152]
[1740521808798,0.002,89240.0,89239.0,1.37839352]
[1740521809450,0.003,89240.0,89239.0,1.37839352]
[1740521810036,0.002,89240.0,89239.0,1.37839352]
[1740521810242,0.001,89240.0,89239.0,1.37839352]
[1740521810702,0.002,89240.0,89239.0,1.38408672]
[1740521810944,0.09941761,89313.0,89240.0,0.01454085]
[1740521811140,0.223976,89295.0,89273.0,0.168023]
[1740521811315,0.167992,89290.0,89274.0,0.3357]
[1740521811511,0.467993,89289.0,89274.0,0.3305604]
[1740521811732,0.02087586,89294.0,89274.0,0.3305604]
[1740521811949,0.16802,89275.0,89274.0,0.3305604]
[1740521812127,0.46802,89275.0,89274.0,0.0160604]
[1740521812287,0.46802,89275.0,89274.0,0.01072543]
[1740521812706,0.48889586,89275.0,89274.0,0.00012543]
[1740521812917,0.49934294,89275.0,89274.0,0.00012543]
[1740521813499,0.53279079,89275.0,89274.0,0.00012543]
[1740521813677,0.53379079,89275.0,89274.0,0.00012543]
[1740521814444,0.53379079,89275.0,89274.0,0.00412543]
[1740521814847,0.53379079,89275.0,89274.0,0.00012543]
[1740521815275,0.53379079,89275.0,89274.0,0.00412543]
[1740521815608,0.53279079,89275.0,89274.0,0.00412543]
[1740521817353,0.58169079,89275.0,89274.0,0.00412543]
[1740521817528,0.69554775,89275.0,89274.0,0.00412543]
[1740521817727,0.58169079,89275.0,89274.0,0.00412543]
[1740521817968,0.58169079,89275.0,89274.0,0.00012543]
[1740521818314,0.58169079,89275.0,89274.0,0.00312543]
[1740521818514,0.91099079,89275.0,89274.0,0.00012543]
[1740521818716,0.468069,89249.0,89248.0,0.0106]
[1740521819233,0.53484486,89249.0,89248.0,0.0106]
[1740521819866,0.54529194,89249.0,89248.0,0.0106]
[1740521820064,0.55961013,89249.0,89248.0,0.0106]
[1740521820268,0.468086,89240.0,89239.0,0.0021119]
[1740521820439,0.19136237,89240.0,89239.0,0.0021119]
[1740521820673,0.35944837,89240.0,89239.0,0.0021119]
[1740521823465,0.36044837,89240.0,89239.0,0.0051119]
[1740521823803,0.3709221,89240.0,89239.0,0.0051119]
[1740521824007,0.168119,89222.0,89221.0,0.3267946]
[1740521824224,0.468119,89222.0,89221.0,0.0018202]
[1740521825149,0.48906768,89222.0,89221.0,0.0018202]
[1740521826496,0.49006768,89222.0,89221.0,0.0018202]
[1740521827212,0.48906768,89222.0,89221.0,0.0018202]
[1740521827617,0.02094868,89222.0,89221.0,0.1699412]
[1740521827825,0.02094868,89222.0,89221.0,0.37609843]
[1740521828002,0.02094868,89222.0,89221.0,0.37452958]
[1740521828887,0.3,89245.0,89224.0,0.168114]
[1740521829091,0.468082,89242.0,89226.0,0.01454085]
[1740521829429,0.3,89242.0,89226.0,0.01454085]
[1740521829667,0.168087,89240.0,89226.0,0.01454085]
[1740521829817,0.168088,89239.0,89226.0,0.01454085]
[1740521830024,0.0788,89248.0,89225.0,0.3251]
[1740521830238,0.168112,89226.0,89225.0,0.3251]
[1740521830391,0.3,89236.0,89222.0,0.0106]
[1740521830758,0.0479,89245.0,89222.0,0.0106]
[1740521830961,0.168109,89228.0,89222.0,0.0106]
[1740521831090,0.168109,89228.0,89226.0,0.003]
[1740521831291,0.3,89229.0,89226.0,0.003]
[1740521831756,0.168109,89228.0,89222.0,0.0106]
[1740521831923,0.168109,89228.0,89221.0,0.0018202]
[1740521832273,0.3,89232.0,89223.0,0.0106]
[1740521832406,0.168116,89224.0,89223.0,0.0106]
[1740521832808,0.468116,89224.0,89223.0,0.0106]
[1740521833240,0.468119,89222.0,89221.0,0.0018202]
[1740521833439,0.595619,89222.0,89221.0,0.0018202]
[1740521834919,0.596619,89222.0,89221.0,0.0018202]
[1740521835338,0.596619,89222.0,89221.0,2e-07]
[1740521835540,0.1285,89222.0,89221.0,2e-07]
[1740521835789,0.295619,89222.0,89221.0,2e-07]
[1740521836384,0.31853645,89222.0,89221.0,2e-07]
[1740521836799,0.23663645,89222.0,89221.0,2e-07]
[1740521837584,0.213719,89222.0,89221.0,2e-07]
[1740521837729,0.219719,89222.0,89221.0,2e-07]
[1740521838335,0.215719,89222.0,89221.0,2e-07]
[1740521838551,0.218719,89222.0,89221.0,2e-07]
[1740521838959,0.170119,89222.0,89221.0,2e-07]
[1740521839162,0.168119,89222.0,89221.0,2e-07]
[1740521839358,0.006,89222.0,89221.0,2e-07]
[1740521839580,0.02689217,89222.0,89221.0,2e-07]
[1740521839786,0.32489217,89222.0,89221.0,2e-07]
[1740521839989,0.02489217,89222.0,89221.0,2e-07]
[1740521840650,0.19301117,89222.0,89221.0,2e-07]
[1740521840799,0.02489217,89222.0,89221.0,2e-07]
[1740521841386,0.18901117,89222.0,89221.0,2e-07]
[1740521841732,0.02189217,89222.0,89221.0,2e-07]
[1740521842161,0.18901117,89222.0,89221.0,2e-07]
[1740521842363,0.02089217,89222.0,89221.0,2e-07]
[1740521843578,0.02089217,89222.0,89221.0,0.58806205]
[1740521845428,0.02189217,89222.0,89221.0,0.4080964]
[1740521845635,0.02189217,89222.0,89221.0,0.4186964]
[1740521845885,0.02189217,89222.0,89221.0,0.4176964]
[1740521846065,0.02289217,89222.0,89221.0,0.4186964]
[1740521846314,0.02189217,89222.0,89221.0,0.4186964]
[1740521846522,0.02189217,89222.0,89221.0,0.3267964]
[1740521846647,0.02289217,89222.0,89221.0,0.34585944]
[1740521846851,0.19001117,89222.0,89221.0,0.34585944]
[1740521847073,0.02189217,89222.0,89221.0,0.34485944]
[1740521847280,0.03337122,89222.0,89221.0,0.34685944]
[1740521847687,0.03437122,89222.0,89221.0,0.34985944]
[1740521847885,0.01347905,89222.0,89221.0,0.34985944]
[1740521848452,0.01147905,89222.0,89221.0,0.34785944]
[1740521848661,0.001,89222.0,89221.0,0.34785944]
[1740521848873,0.2249641,89240.0,89221.0,0.34885944]
[1740521849075,0.168108,89229.0,89221.0,0.34885944]
[1740521849274,0.168105,89230.0,89221.0,0.34885944]
[1740521849481,0.168106,89230.0,89221.0,0.34885944]
[1740521849955,0.0008481,89240.0,89221.0,0.34885944]
[1740521850120,0.22413,89234.0,89221.0,0.34785944]
[1740521850332,0.22413,89234.0,89221.0,0.34885944]
[1740521850633,0.001,89230.0,89221.0,0.34585944]
[1740521850838,0.001,89230.0,89229.0,0.25773031]
[1740521851006,0.001,89230.0,89229.0,0.27227116]
[1740521851203,0.001,89230.0,89229.0,0.36153695]
[1740521851412,0.001,89230.0,89229.0,0.80038448]
[1740521851618,0.02097624,89233.0,89232.0,0.18264185]
[1740521851821,0.02097624,89233.0,89232.0,0.03758938]
[1740521852033,0.001,89234.0,89233.0,0.168099]
[1740521852236,0.001,89234.0,89233.0,1.22321503]
[1740521852437,0.001,89234.0,89233.0,1.22674681]
[1740521853415,0.0478,89292.0,89239.0,0.168087]
[1740521853556,0.168025,89273.0,89239.0,0.37145884]
[1740521853764,0.01494318,89268.0,89239.0,0.37655489]
[1740521854125,0.01494318,89268.0,89239.0,0.56905574]
[1740521854978,0.01494318,89268.0,89239.0,0.57965574]
[1740521855180,0.0018481,89240.0,89239.0,0.57205574]
[1740521855419,0.0018481,89240.0,89239.0,0.29328036]
[1740521855591,0.0008481,89240.0,89239.0,0.27516078]
[1740521855794,0.0008481,89240.0,89239.0,0.61086078]
[1740521856003,0.0018481,89240.0,89239.0,0.78994778]
[1740521856203,0.0018481,89240.0,89239.0,0.78294778]
[1740521856469,0.0018481,89240.0,89239.0,0.91123616]
[1740521856742,0.0018481,89240.0,89239.0,0.91823616]
[1740521857246,0.0008481,89240.0,89239.0,0.91423616]
[1740521857830,0.0008481,89240.0,89239.0,0.90723616]
[1740521858028,0.0028481,89240.0,89239.0,0.91723616]
[1740521858227,0.0028481,89240.0,89239.0,0.35327647]
[1740521858441,0.0028481,89240.0,89239.0,0.52136347]
[1740521858641,0.0018481,89240.0,89239.0,0.51836347]
[1740521858870,0.0028481,89240.0,89239.0,0.52136347]
[1740521859237,0.0028481,89240.0,89239.0,0.51076347]
[1740521859418,0.0018481,89240.0,89239.0,0.51436347]
[1740521859617,0.0028481,89240.0,89239.0,0.64865185]
[1740521860214,0.0018481,89240.0,89239.0,1.18225185]
[1740521860414,0.0028481,89240.0,89239.0,1.18525185]
[1740521860809,0.0018481,89240.0,89239.0,1.17925185]
[1740521861033,1e-07,89240.0,89239.0,1.27625185]
[1740521861247,0.0020001,89240.0,89239.0,1.41315185]
[1740521861449,0.0020001,89240.0,89239.0,1.40715185]
[1740521861850,0.0030001,89240.0,89239.0,1.41315185]
[1740521863390,0.0030001,89240.0,89239.0,1.53145185]
[1740521863590,0.0030001,89240.0,89239.0,2.23145185]
[1740521864827,0.0030001,89240.0,89239.0,2.33145185]
[1740521866968,0.0020001,89240.0,89239.0,2.32845185]
[1740521867297,1e-07,89240.0,89239.0,2.35196005]
[1740521867498,1e-07,89240.0,89239.0,2.65896005]
[1740521869362,0.0008467,89287.0,89286.0,0.167999]
[1740521869566,0.0008467,89287.0,89286.0,0.5036989]
[1740521869831,0.0008467,89287.0,89286.0,0.34311986]
[1740521870426,0.1688437,89287.0,89286.0,0.34311986]
[1740521870753,0.16926188,89287.0,89286.0,0.34311986]
[1740521870879,0.00126488,89287.0,89286.0,0.34311986]
[1740521871075,0.16926188,89287.0,89286.0,0.3356999]
[1740521871288,0.16926188,89287.0,89286.0,0.3416999]
[1740521871497,0.62604369,89287.0,89286.0,0.01337682]
[1740521871898,0.38226488,89287.0,89286.0,0.015]
[1740521872124,0.30126488,89287.0,89286.0,0.015]
[1740521873069,0.32217419,89287.0,89286.0,0.015]
[1740521873245,0.49017119,89287.0,89286.0,0.015]
[1740521873424,0.467999,89286.0,89277.0,0.0106]
[1740521874088,0.02090931,89285.0,89277.0,0.0106]
[1740521874940,0.02090931,89285.0,89277.0,0.3386999]
[1740521875345,0.02090931,89285.0,89278.0,0.00739569]
[1740521876106,0.00126488,89287.0,89279.0,0.0106]
[1740521876508,0.00126488,89287.0,89280.0,0.00739381]
[1740521876683,0.168007,89282.0,89280.0,0.00739381]
[1740521876879,0.00126488,89287.0,89280.0,0.00739381]
[1740521877021,0.168008,89282.0,89280.0,0.00739381]
[1740521877230,0.224004,89284.0,89280.0,0.00739381]
[1740521877452,0.168006,89283.0,89280.0,0.00739381]
[1740521877662,0.3,89285.0,89280.0,0.00739381]
[1740521877857,0.3,89285.0,89280.0,0.01439381]
[1740521877858,0.168008,89281.0,89280.0,0.01439381]
[1740521878059,0.00126488,89287.0,89280.0,0.03141331]
[1740521878310,0.00126488,89287.0,89280.0,0.02197409]
[1740521878828,0.00126488,89287.0,89280.0,0.02897409]
[1740521879585,0.00126488,89287.0,89280.0,0.0216]
[1740521879792,0.00126488,89287.0,89280.0,0.0106]
[1740521879993,0.01497773,89287.0,89280.0,0.0106]
[1740521880192,0.01497773,89287.0,89281.0,0.00737315]
[1740521880437,0.01497773,89287.0,89280.0,0.0116]
[1740521880587,0.01497773,89287.0,89281.0,0.00737315]
[1740521881026,0.0008481,89283.0,89281.0,0.00737315]
[1740521881241,0.0008481,89283.0,89280.0,0.0116]
[1740521881625,0.0008481,89283.0,89281.0,0.00937315]
[1740521883132,0.07606407,89282.0,89281.0,0.002]
[1740521883347,0.32437007,89282.0,89281.0,0.002]
[1740521883656,0.0803,89263.0,89247.0,0.3250999]
[1740521883879,0.168059,89254.0,89247.0,0.3250999]
[1740521884010,0.2459113,89254.0,89247.0,0.3250999]
[1740521884671,0.2459113,89254.0,89241.0,0.0106]
[1740521885019,0.5459113,89254.0,89253.0,0.18084]
[1740521885238,0.59462922,89254.0,89253.0,0.007]
[1740521886429,0.59462922,89254.0,89253.0,0.004]
[1740521886631,0.224101,89246.0,89240.0,0.3250999]
[1740521886835,0.07851141,89245.0,89240.0,0.3250999]
[1740521887039,0.07851141,89245.0,89239.0,0.0016962]
[1740521887335,0.04871792,89254.0,89242.0,0.224108]
[1740521887504,0.07819753,89253.0,89243.0,0.168078]
[1740521887696,0.37819753,89253.0,89243.0,0.168078]
[1740521887916,0.37819753,89253.0,89239.0,0.00326481]
[1740521887917,0.37819753,89253.0,89240.0,0.004]
[1740521888117,0.37819753,89253.0,89240.0,0.00156861]
[1740521888341,0.39237178,89253.0,89240.0,0.00156861]
[1740521888541,0.39237178,89253.0,89242.0,0.004]
[1740521889957,0.56043278,89253.0,89239.0,0.0016962]
[1740521890158,0.56043278,89253.0,89240.0,0.01052167]
[1740521890696,0.56043278,89253.0,89240.0,0.005]
[1740521890894,0.56043278,89253.0,89240.0,0.003]
[1740521891299,0.56043278,89253.0,89240.0,0.004]
[1740521891504,0.39237178,89253.0,89240.0,0.001]
[1740521891682,0.39237178,89253.0,89240.0,0.169085]
[1740521891884,0.39237178,89253.0,89240.0,0.001]
[1740521892079,0.168063,89252.0,89241.0,0.00752073]
[1740521892304,0.39237178,89253.0,89241.0,0.00752073]
[1740521892305,0.01417425,89253.0,89242.0,0.004]
[1740521892516,0.00041792,89254.0,89253.0,0.168061]
[1740521892733,0.00860401,89307.0,89254.0,0.01454085]
[1740521892927,0.00012532,89285.0,89268.0,0.01454085]
[1740521893253,0.00012532,89285.0,89282.0,0.168005]
[1740521893449,0.00012532,89285.0,89283.0,0.00748125]
[1740521893594,0.00012532,89285.0,89270.0,0.01454085]
[1740521893795,0.00012532,89285.0,89277.0,0.168015]
[1740521894036,0.02093827,89284.0,89278.0,0.00748595]
[1740521894248,0.0008481,89283.0,89281.0,0.168007]
[1740521894552,0.0008481,89283.0,89271.0,0.11374753]
[1740521894553,0.0008481,89283.0,89282.0,0.01048219]
[1740521895110,0.02178637,89283.0,89282.0,0.01048219]
[1740521895566,0.18979137,89283.0,89282.0,0.01048219]
[1740521895771,0.27629269,89283.0,89282.0,0.00748219]
[1740521895973,0.168008,89281.0,89280.0,0.0106]
[1740521896271,0.24416615,89281.0,89280.0,0.0106]
[1740521896491,0.168012,89279.0,89278.0,0.004]
[1740521896687,0.168016,89277.0,89276.0,0.0106]
[1740521896910,0.54442507,89277.0,89276.0,0.0106]
[1740521897457,0.168046,89262.0,89244.0,0.3250999]
[1740521897658,0.168052,89258.0,89253.0,0.01056]
[1740521897926,0.02093827,89261.0,89253.0,0.01056]
[1740521898196,0.20271458,89261.0,89253.0,0.01056]
[1740521898401,0.224065,89260.0,89253.0,0.01056]
[1740521898600,0.168052,89258.0,89253.0,0.01056]
[1740521898900,0.24577852,89258.0,89252.0,0.01056]
[1740521899669,0.08819804,89258.0,89252.0,0.01056]
[1740521899853,0.17864879,89258.0,89257.0,0.014]
[1740521900065,0.17864879,89258.0,89257.0,0.007]
[1740521900273,0.17864879,89258.0,89257.0,0.014]
[1740521900678,0.17864879,89258.0,89252.0,0.01056]
[1740521900895,0.168054,89257.0,89252.0,0.02456]
[1740521901132,0.01059679,89258.0,89252.0,0.02456]
[1740521901340,0.01059679,89258.0,89257.0,0.168054]
[1740521901703,0.01059679,89258.0,89257.0,0.007]
[1740521902085,0.00012527,89258.0,89257.0,0.007]
[1740521902529,0.00012527,89258.0,89257.0,0.014]